bitfinex/quotes_SOLUSD_20230120
["timestamp","ask_amount","ask_price","bid_price","bid_amount"]
[1674242092808,10.0,22.85,22.841,17.0]
[1674242093016,10.0,22.85,22.842,0.96]
[1674242093418,10.0,22.85,22.841,17.0]
[1674242093631,10.0,22.85,22.84,19.06877909]
[1674242093852,10.0,22.85,22.836,119.4359]
[1674242094070,10.0,22.848,22.836,119.4359]
[1674242094389,10.0,22.848,22.832,19.06877909]
[1674242094600,49.83,22.847,22.827,45.47058162]
[1674242094804,10.0,22.846,22.827,45.47058162]
[1674242095013,10.0,22.844,22.827,45.47058162]
[1674242096286,10.0,22.844,22.828,20.0]
[1674242096592,10.0,22.844,22.829,17.96]
[1674242096994,10.0,22.844,22.829,37.02877909]
[1674242097420,10.0,22.844,22.83,19.06877909]
[1674242097642,10.0,22.844,22.831,17.0]
[1674242098904,10.0,22.844,22.832,19.06877909]
[1674242099116,10.0,22.845,22.833,17.96]
[1674242099542,10.0,22.845,22.834,19.06877909]
[1674242099746,10.0,22.845,22.835,17.96]
[1674242100686,10.0,22.845,22.834,19.06877909]
[1674242101006,10.0,22.845,22.835,17.0]
[1674242101646,10.0,22.845,22.833,17.0]
[1674242102596,10.0,22.845,22.833,36.06877909]
[1674242102993,110.6513,22.847,22.834,30.02877909]
[1674242103203,10.0,22.849,22.835,37.0]
[1674242103418,10.0,22.849,22.836,0.96]
[1674242103631,160.504,22.855,22.836,20.02877909]
[1674242103847,160.504,22.855,22.838,10.0]
[1674242104045,160.504,22.855,22.839,37.96]
[1674242104460,160.504,22.855,22.84,29.06877909]
[1674242104672,160.504,22.855,22.841,17.96]
[1674242105829,160.504,22.855,22.84,19.06877909]
[1674242107508,32.83,22.853,22.84,19.06877909]
[1674242107719,32.83,22.853,22.839,20.0]
[1674242109331,32.83,22.853,22.84,10.0]
[1674242109521,42.82,22.854,22.841,17.0]
[1674242109738,10.0,22.853,22.841,17.0]
[1674242110255,10.0,22.853,22.84,17.0]
[1674242110469,10.0,22.853,22.841,0.96]
[1674242111631,10.0,22.853,22.841,10.96]
[1674242111848,10.0,22.853,22.842,17.0]
[1674242112047,10.0,22.853,22.843,0.96]
[1674242113720,10.0,22.853,22.842,0.96]
[1674242116698,10.0,22.853,22.842,10.96]
[1674242116890,10.0,22.853,22.843,57.86084118]
[1674242117105,10.0,22.853,22.844,0.96]
[1674242119605,10.0,22.853,22.843,20.43042059]
[1674242122361,17.38,22.85,22.834,48.17787698]
[1674242122674,69.83,22.849,22.834,48.17787698]
[1674242122899,10.0,22.848,22.834,48.17787698]
[1674242123091,49.83,22.847,22.834,48.17787698]
[1674242123295,10.0,22.846,22.834,48.17787698]
[1674242123505,32.84,22.845,22.834,48.17787698]
[1674242123710,10.0,22.844,22.834,48.17787698]
[1674242123946,32.84,22.843,22.834,48.17787698]
[1674242124138,10.0,22.842,22.825,114.9276]
[1674242124357,10.0,22.84,22.825,114.9276]
[1674242124561,10.0,22.84,22.817,10.0]
[1674242124767,161.3812,22.839,22.817,10.0]
[1674242124979,0.96,22.838,22.813,10.0]
[1674242125300,10.0,22.836,22.817,10.0]
[1674242125516,10.0,22.834,22.818,20.0]
[1674242126340,10.0,22.834,22.819,0.96]
[1674242126556,10.0,22.834,22.818,20.0]
[1674242128783,10.0,22.834,22.818,18.0]
[1674242129178,10.0,22.834,22.819,10.0]
[1674242129615,10.0,22.834,22.821,10.0]
[1674242129823,10.0,22.834,22.822,17.96]
[1674242130573,10.0,22.834,22.822,17.0]
[1674242132350,10.0,22.836,22.823,10.0]
[1674242132547,10.0,22.836,22.824,17.0]
[1674242133189,10.0,22.836,22.823,10.0]
[1674242133392,10.0,22.836,22.823,8.0]
[1674242133714,10.0,22.836,22.824,17.0]
[1674242134115,10.0,22.836,22.823,8.0]
[1674242134453,0.96,22.835,22.823,8.0]
[1674242135061,0.96,22.835,22.821,10.0]
[1674242138547,0.96,22.835,22.822,17.0]
[1674242139163,0.96,22.835,22.821,10.0]
[1674242139708,10.0,22.837,22.822,20.0]
[1674242139907,146.0221,22.847,22.823,0.96]
[1674242140123,146.0221,22.847,22.823,17.96]
[1674242140330,146.0221,22.847,22.824,20.0]
[1674242140553,10.0,22.846,22.825,27.96]
[1674242140867,10.0,22.846,22.827,10.0]
[1674242141085,10.0,22.846,22.829,10.0]
[1674242141273,113.1921,22.847,22.83,17.96]
[1674242141602,113.1921,22.847,22.831,10.0]
[1674242141792,113.1921,22.847,22.832,17.96]
[1674242142003,113.1921,22.847,22.833,10.0]
[1674242142237,113.1921,22.847,22.834,17.96]
[1674242142448,10.0,22.846,22.834,17.96]
[1674242144210,10.0,22.846,22.834,17.0]
[1674242144537,10.0,22.846,22.832,17.0]
[1674242144756,10.0,22.846,22.826,10.0]
[1674242144974,49.84,22.845,22.825,114.9356]
[1674242145467,10.0,22.844,22.825,114.9356]
[1674242145675,49.84,22.843,22.825,114.9356]
[1674242146111,10.0,22.842,22.825,114.9356]
[1674242146310,32.84,22.841,22.826,17.0]
[1674242146524,10.0,22.842,22.827,10.0]
[1674242146737,10.0,22.844,22.829,10.0]
[1674242146951,0.96,22.843,22.829,10.0]
[1674242147369,10.0,22.844,22.831,10.0]
[1674242147576,113.1921,22.847,22.832,17.96]
[1674242148648,10.0,22.846,22.833,10.0]
[1674242148846,10.0,22.846,22.834,17.0]
[1674242149043,10.0,22.846,22.832,17.0]
[1674242151913,10.0,22.846,22.829,10.0]
[1674242152103,10.0,22.845,22.83,17.0]
[1674242152313,33.8,22.844,22.828,488.1343344]
[1674242152524,33.8,22.844,22.831,120.06865023]
[1674242152835,10.0,22.843,22.826,10.0]
[1674242153052,10.0,22.841,22.814,110.1152]
[1674242153895,67.22,22.84,22.814,110.1152]
[1674242154322,10.0,22.839,22.814,110.1152]
[1674242154643,10.0,22.837,22.814,110.1152]
[1674242154852,10.0,22.835,22.814,110.1152]
[1674242155689,10.0,22.835,22.818,20.0]
[1674242156516,10.0,22.835,22.819,17.96]
[1674242157165,10.0,22.835,22.819,17.0]
[1674242158113,10.0,22.833,22.814,110.1152]
[1674242158428,10.0,22.833,22.814,108.1152]
[1674242158429,10.0,22.831,22.814,108.1152]
[1674242158644,0.96,22.83,22.814,108.1152]
[1674242158835,17.96,22.83,22.814,108.1152]
[1674242159047,10.0,22.829,22.814,108.1152]
[1674242159261,10.0,22.829,22.815,10.0]
[1674242159686,10.0,22.829,22.81,10.0]
[1674242159897,10.0,22.827,22.81,10.0]
[1674242160106,17.0,22.826,22.81,10.0]
[1674242160318,10.0,22.827,22.81,10.0]
[1674242161276,10.0,22.827,22.812,10.0]
[1674242161478,10.0,22.827,22.813,17.0]
[1674242161893,10.0,22.827,22.81,10.0]
[1674242162105,10.0,22.827,22.811,17.96]
[1674242162317,10.0,22.827,22.812,10.0]
[1674242162530,10.0,22.827,22.813,17.0]
[1674242163060,117.8379,22.828,22.814,10.0]
[1674242163248,10.0,22.827,22.815,17.0]
[1674242163465,10.0,22.827,22.816,10.0]
[1674242163683,10.0,22.827,22.814,118.1918]
[1674242164326,10.0,22.827,22.814,116.6918]
[1674242164638,0.96,22.826,22.814,116.6918]
[1674242165262,10.0,22.827,22.814,116.6918]
[1674242167362,117.8379,22.828,22.814,116.6918]
[1674242167670,10.0,22.833,22.815,37.96]
[1674242167891,10.0,22.835,22.815,37.96]
[1674242168109,10.0,22.835,22.816,10.0]
[1674242168419,141.14726951,22.838,22.818,10.0]
[1674242168616,117.3915,22.838,22.819,37.96]
[1674242168829,117.3915,22.838,22.82,10.0]
[1674242169030,117.3915,22.838,22.821,17.96]
[1674242169243,117.3915,22.838,22.822,10.0]
[1674242169453,117.3915,22.838,22.823,17.96]
[1674242169664,117.3915,22.838,22.824,10.0]
[1674242169889,117.3915,22.838,22.825,17.96]
[1674242170080,117.3915,22.838,22.826,10.0]
[1674242170293,117.3915,22.838,22.827,17.0]
[1674242170502,66.59576951,22.844,22.828,10.0]
[1674242170746,122.4977,22.844,22.829,12.0]
[1674242173568,122.4977,22.844,22.83,10.96]
[1674242173885,122.4977,22.844,22.831,17.0]
[1674242174093,122.4977,22.844,22.828,10.0]
[1674242174305,122.4977,22.844,22.829,17.0]
[1674242174718,122.4977,22.844,22.826,10.0]
[1674242174926,122.4977,22.844,22.821,10.0]
[1674242175139,10.0,22.841,22.821,10.0]
[1674242175372,49.84,22.84,22.821,10.0]
[1674242175790,10.0,22.839,22.821,10.0]
[1674242176194,10.0,22.839,22.826,10.0]
[1674242176611,10.0,22.839,22.821,10.0]
[1674242177375,10.0,22.839,22.825,110.4124]
[1674242177996,10.0,22.839,22.826,10.0]
[1674242178620,10.0,22.839,22.827,17.0]
[1674242179133,10.0,22.839,22.825,110.4124]
[1674242179343,10.0,22.839,22.826,17.0]
[1674242179579,10.0,22.839,22.825,110.4124]
[1674242179769,10.0,22.839,22.826,17.0]
[1674242181047,10.0,22.839,22.827,10.0]
[1674242182112,10.0,22.839,22.828,17.0]
[1674242182412,33.75576951,22.841,22.829,10.0]
[1674242182607,42.84,22.843,22.829,10.0]
[1674242182816,32.83,22.85,22.83,17.0]
[1674242183044,150.5153,22.85,22.831,10.96]
[1674242183243,117.6853,22.85,22.832,17.0]
[1674242183458,117.6853,22.85,22.833,0.96]
[1674242183668,32.82,22.858,22.833,20.96]
[1674242183880,150.5053,22.858,22.834,27.0]
[1674242184088,42.82,22.856,22.836,10.0]
[1674242184314,42.82,22.856,22.838,10.0]
[1674242184528,42.82,22.856,22.839,17.96]
[1674242184840,42.82,22.856,22.84,10.0]
[1674242185029,42.82,22.856,22.841,17.0]
[1674242186739,42.82,22.856,22.838,10.0]
[1674242186938,42.82,22.856,22.823,68.7597068]
[1674242186939,10.0,22.853,22.823,68.7597068]
[1674242187149,0.96,22.852,22.823,68.7597068]
[1674242187355,42.83,22.853,22.837,0.96]
[1674242187989,42.83,22.853,22.823,68.7597068]
[1674242188200,42.83,22.853,22.837,17.0]
[1674242188924,42.83,22.853,22.838,10.0]
[1674242189150,42.83,22.853,22.839,17.0]
[1674242189371,10.0,22.853,22.839,17.0]
[1674242190002,32.82,22.854,22.84,10.0]
[1674242190191,42.82,22.856,22.841,17.0]
[1674242190404,10.0,22.856,22.842,0.96]
[1674242191450,42.82,22.856,22.842,0.96]
[1674242191893,42.82,22.856,22.841,17.0]
[1674242191894,42.82,22.856,22.841,14.5]
[1674242192501,42.82,22.856,22.842,0.96]
[1674242193375,42.82,22.856,22.842,10.96]
[1674242194105,42.82,22.856,22.843,17.0]
[1674242195031,42.82,22.856,22.841,17.0]
[1674242195787,32.79,22.875,22.842,30.0]
[1674242195986,10.0,22.874,22.843,457.87238672]
[1674242196194,32.8,22.873,22.844,440.87312544]
[1674242196398,32.8,22.873,22.845,22.24067]
[1674242196610,32.8,22.873,22.846,4.28048]
[1674242196947,32.8,22.873,22.85,17.28]
[1674242197129,108.5815,22.875,22.85,17.28]
[1674242197130,108.5815,22.875,22.851,395.00313662]
[1674242197346,108.5815,22.875,22.852,22.23936]
[1674242197567,108.5815,22.875,22.854,10.0]
[1674242197764,108.5815,22.875,22.855,17.96]
[1674242197975,108.5815,22.875,22.856,262.737648]
[1674242198203,108.5815,22.875,22.857,37.96]
[1674242198520,108.5815,22.875,22.859,10.0]
[1674242198735,108.5815,22.875,22.861,10.0]
[1674242199041,108.5815,22.875,22.862,259.83747672]
[1674242199444,108.5815,22.875,22.862,242.83747672]
[1674242199664,10.0,22.874,22.863,242.83747672]
[1674242201127,42.8,22.874,22.863,242.83747672]
[1674242201341,10.0,22.873,22.863,242.83747672]
[1674242201767,10.0,22.873,22.863,240.33747672]
[1674242203988,10.0,22.871,22.863,240.33747672]
[1674242204175,32.8,22.87,22.863,240.33747672]
[1674242204384,42.8,22.871,22.863,240.33747672]
[1674242204595,17.0,22.87,22.863,240.33747672]
[1674242204826,10.0,22.869,22.863,240.33747672]
[1674242208506,10.0,22.869,22.858,10.0]
[1674242208686,10.0,22.869,22.857,19.19900309]
[1674242209121,10.0,22.869,22.857,16.69900309]
[1674242210585,10.0,22.869,22.852,18.5]
[1674242210797,10.0,22.869,22.855,8.0]
[1674242211016,10.0,22.869,22.856,17.0]
[1674242213241,10.0,22.869,22.855,27.19900309]
[1674242213439,10.0,22.869,22.855,19.19900309]
[1674242213649,10.0,22.869,22.856,17.0]
[1674242214167,10.0,22.869,22.855,19.19900309]
[1674242214372,10.0,22.869,22.851,10.0]
[1674242214373,17.0,22.868,22.851,10.0]
[1674242214584,10.96,22.867,22.851,10.0]
[1674242214798,17.0,22.866,22.851,10.0]
[1674242215131,10.96,22.865,22.851,10.0]
[1674242215313,10.0,22.865,22.851,10.0]
[1674242215528,10.0,22.865,22.853,10.0]
[1674242215737,10.0,22.865,22.854,17.0]
[1674242216160,10.0,22.865,22.851,10.0]
[1674242216577,10.0,22.865,22.852,17.0]
[1674242217023,10.0,22.865,22.852,14.5]
[1674242217632,10.0,22.865,22.851,10.0]
[1674242218906,10.0,22.865,22.848,10.0]
[1674242219208,10.0,22.863,22.849,20.0]
[1674242220473,10.0,22.863,22.85,10.0]
[1674242221109,10.0,22.863,22.851,17.0]
[1674242221330,10.0,22.863,22.852,10.0]
[1674242221530,10.0,22.863,22.853,17.0]
[1674242223542,10.0,22.867,22.854,10.0]
[1674242223731,10.0,22.867,22.855,17.96]
[1674242223944,10.0,22.867,22.855,37.00822643]
[1674242224567,10.0,22.867,22.855,17.96]
[1674242225215,10.0,22.87,22.856,10.0]
[1674242225418,10.0,22.87,22.857,17.0]
[1674242225717,10.0,22.87,22.854,10.0]
[1674242225942,10.0,22.87,22.855,17.0]
[1674242226566,10.0,22.87,22.856,10.96]
[1674242226777,10.0,22.87,22.858,10.0]
[1674242227214,10.0,22.87,22.859,17.96]
[1674242227821,10.0,22.873,22.86,10.0]
[1674242228047,10.0,22.873,22.861,17.0]
[1674242229101,0.66417183,22.872,22.862,0.96]
[1674242229432,0.66417183,22.872,22.863,10.0]
[1674242229616,0.66417183,22.872,22.864,17.0]
[1674242230038,10.0,22.877,22.864,17.0]
[1674242230242,10.0,22.877,22.863,10.0]
[1674242230453,10.0,22.877,22.864,17.0]
[1674242231717,42.79,22.877,22.856,35.11]
[1674242232046,42.79,22.877,22.86,10.0]
[1674242233195,0.66714471,22.875,22.86,10.0]
[1674242233413,10.0,22.874,22.86,10.0]
[1674242235219,0.66714471,22.875,22.861,17.0]
[1674242235417,0.66714471,22.875,22.862,10.0]
[1674242235616,0.66714471,22.875,22.863,17.96]
[1674242236042,0.66714471,22.875,22.863,17.0]
[1674242237614,0.66714471,22.875,22.862,17.0]
[1674242239098,0.66714471,22.875,22.86,17.0]
[1674242240353,0.66714471,22.875,22.859,17.0]
[1674242240561,0.66714471,22.875,22.86,20.0]
[1674242241502,0.66714471,22.875,22.861,27.96]
[1674242241926,0.66714471,22.875,22.861,17.96]
[1674242242354,0.66714471,22.875,22.862,10.0]
[1674242242563,0.66714471,22.875,22.863,17.0]
[1674242243400,0.66714471,22.875,22.862,17.0]
[1674242243619,0.66714471,22.875,22.861,17.0]
[1674242244059,0.44476314,22.875,22.861,17.0]
[1674242244581,0.44476314,22.875,22.853,18.47]
[1674242244886,0.44476314,22.875,22.854,10.0]
[1674242244887,32.8,22.874,22.854,10.0]
[1674242245104,27.0,22.873,22.854,10.0]
[1674242245713,27.0,22.873,22.855,17.0]
[1674242245933,10.0,22.872,22.854,10.0]
[1674242247095,10.0,22.872,22.855,17.0]
[1674242248039,0.44212047,22.871,22.856,10.0]
[1674242248887,0.44212047,22.871,22.857,17.0]
[1674242251939,0.44212047,22.871,22.858,10.0]
[1674242252145,0.6631807,22.871,22.859,17.0]
[1674242252333,0.6631807,22.871,22.86,29.48]
[1674242252543,0.6631807,22.871,22.861,17.0]
[1674242252754,0.6631807,22.871,22.862,10.0]
[1674242252976,0.6631807,22.871,22.863,17.0]
[1674242253204,10.0,22.875,22.863,17.0]
[1674242254751,10.0,22.875,22.862,17.0]
[1674242254956,10.0,22.875,22.861,18.42]
[1674242255168,10.0,22.875,22.858,112.6067]
[1674242255381,17.0,22.874,22.859,20.0]
[1674242255607,10.0,22.873,22.859,20.0]
[1674242256012,0.44278122,22.872,22.859,20.0]
[1674242256218,0.44278122,22.872,22.858,112.6067]
[1674242256452,0.44278122,22.872,22.855,18.43]
[1674242258124,0.44278122,22.872,22.856,17.0]
[1674242260229,0.66417183,22.872,22.857,10.0]
[1674242260448,0.66417183,22.872,22.858,37.96]
[1674242260627,0.66417183,22.872,22.86,10.0]
[1674242260838,0.66417183,22.872,22.861,36.45]
[1674242261053,0.66417183,22.872,22.862,10.0]
[1674242261270,0.66417183,22.872,22.863,36.45]
[1674242261692,0.66417183,22.872,22.863,17.96]
[1674242261895,0.66417183,22.872,22.863,0.96]
[1674242262107,0.44278122,22.872,22.863,19.45]
[1674242262334,0.44278122,22.872,22.864,17.0]
[1674242263067,10.0,22.875,22.862,17.0]
[1674242263787,10.0,22.875,22.86,18.41]
[1674242263788,10.0,22.875,22.861,17.0]
[1674242264236,0.66615384,22.874,22.861,17.0]
[1674242265568,0.66615384,22.874,22.86,17.0]
[1674242265777,0.66615384,22.874,22.861,0.96]
[1674242266752,0.66615384,22.874,22.859,18.44]
[1674242266987,0.66615384,22.874,22.86,20.0]
[1674242267279,32.8,22.873,22.851,28.45]
[1674242267488,17.0,22.872,22.851,28.45]
[1674242267699,10.0,22.871,22.851,28.45]
[1674242268228,119.9762807,22.871,22.851,28.45]
[1674242268625,10.0,22.87,22.851,28.45]
[1674242269076,10.0,22.87,22.852,17.96]
[1674242270436,10.0,22.87,22.852,17.0]
[1674242272518,10.0,22.87,22.853,0.96]
[1674242272950,10.0,22.87,22.853,10.96]
[1674242273163,10.0,22.87,22.854,17.0]
[1674242274938,10.0,22.87,22.852,17.0]
[1674242276853,10.0,22.87,22.851,17.0]
[1674242277056,10.0,22.87,22.852,0.96]
[1674242277258,10.0,22.868,22.85,18.54]
[1674242277578,17.0,22.867,22.848,18.57]
[1674242277798,17.0,22.867,22.849,20.0]
[1674242278000,10.0,22.866,22.849,20.0]
[1674242278194,17.0,22.865,22.848,20.0]
[1674242278405,10.0,22.864,22.848,20.0]
[1674242278841,10.0,22.864,22.849,18.57]
[1674242279052,10.0,22.864,22.85,20.0]
[1674242279560,17.0,22.863,22.85,20.0]
[1674242279769,17.41,22.86,22.831,112.3009]
[1674242279994,10.0,22.858,22.838,10.0]
[1674242280219,32.82,22.857,22.838,10.0]
[1674242280401,17.0,22.856,22.837,18.71]
[1674242280742,10.0,22.854,22.837,10.0]
[1674242281047,10.0,22.854,22.833,28.71]
[1674242281048,10.0,22.852,22.833,28.71]
[1674242281264,42.83,22.852,22.831,18.71]
[1674242281449,17.0,22.851,22.83,374.75331133]
[1674242281869,10.0,22.85,22.827,18.72]
[1674242282086,10.0,22.85,22.828,10.0]
[1674242282388,10.0,22.85,22.829,18.71]
[1674242282602,17.0,22.849,22.828,10.0]
[1674242282833,128.9084,22.849,22.83,10.0]
[1674242283026,10.0,22.848,22.83,10.0]
[1674242283234,17.0,22.847,22.83,10.0]
[1674242283453,42.83,22.848,22.83,10.0]
[1674242284204,42.83,22.848,22.831,17.0]
[1674242284734,42.83,22.848,22.831,15.0]
[1674242285036,17.0,22.847,22.828,29.56]
[1674242285248,32.84,22.846,22.829,20.0]
[1674242285471,10.0,22.844,22.829,20.0]
[1674242285659,17.0,22.843,22.829,20.0]
[1674242286275,17.0,22.843,22.83,10.0]
[1674242287752,17.0,22.843,22.828,10.0]
[1674242288078,13.01,22.84,22.826,10.0]
[1674242288504,17.0,22.839,22.826,10.0]
[1674242289039,10.0,22.838,22.826,10.0]
[1674242291227,10.0,22.84,22.826,10.0]
[1674242291546,10.0,22.84,22.828,10.0]
[1674242292304,10.0,22.84,22.826,10.0]
[1674242293538,10.0,22.84,22.827,17.0]
[1674242293749,10.0,22.84,22.828,10.0]
[1674242294484,10.0,22.84,22.829,17.0]
[1674242294698,10.0,22.841,22.829,17.0]
[1674242294910,10.0,22.841,22.83,10.0]
[1674242295321,10.0,22.841,22.828,10.0]
[1674242295534,10.0,22.841,22.826,10.0]
[1674242296897,10.0,22.841,22.824,10.0]
[1674242297330,42.84,22.841,22.826,10.0]
[1674242297553,42.84,22.841,22.824,10.0]
[1674242298392,10.0,22.841,22.824,10.0]
[1674242298608,32.84,22.84,22.824,10.0]
[1674242298908,10.0,22.839,22.823,10.0]
[1674242299121,49.85,22.838,22.821,10.0]
[1674242299520,49.85,22.838,22.819,10.0]
[1674242299736,10.0,22.837,22.819,10.0]
[1674242300065,10.0,22.835,22.819,10.0]
[1674242301111,13.07,22.83,22.812,28.9]
[1674242301330,32.86,22.829,22.804,19.04]
[1674242301541,49.86,22.829,22.805,19.04822643]
[1674242301757,49.86,22.829,22.806,19.03]
[1674242301956,49.86,22.829,22.805,29.49732855]
[1674242302167,73.61576951,22.829,22.805,29.49732855]
[1674242302381,10.0,22.828,22.806,10.0]
[1674242302601,49.86,22.827,22.806,10.0]
[1674242303627,10.0,22.826,22.806,10.0]
[1674242303838,49.87,22.825,22.806,10.0]
[1674242304384,23.75576951,22.824,22.806,10.0]
[1674242304573,49.87,22.823,22.806,10.0]
[1674242304783,17.0,22.823,22.806,10.0]
[1674242305007,17.0,22.824,22.801,19.74]
[1674242305325,10.0,22.822,22.807,10.0]
[1674242306154,13.07,22.82,22.807,10.0]
[1674242306366,13.07,22.82,22.804,10.0]
[1674242306903,27.0,22.819,22.804,10.0]
[1674242307319,10.0,22.822,22.804,10.0]
[1674242307722,10.0,22.822,22.804,32.94]
[1674242307933,10.0,22.822,22.805,10.0]
[1674242308354,42.87,22.825,22.805,10.0]
[1674242308684,32.87,22.825,22.807,10.0]
[1674242308901,42.86,22.827,22.808,62.38]
[1674242309105,10.0,22.827,22.809,10.0]
[1674242309429,10.0,22.827,22.811,10.0]
[1674242309949,10.0,22.827,22.813,10.0]
[1674242310349,10.0,22.827,22.814,17.0]
[1674242310582,122.4459,22.828,22.815,10.0]
[1674242311410,122.4459,22.828,22.816,17.0]
[1674242311628,122.4459,22.828,22.817,10.0]
[1674242311945,155.3059,22.828,22.815,10.0]
[1674242312153,122.4459,22.828,22.815,10.0]
[1674242312562,122.4459,22.828,22.814,116.2702]
[1674242313103,122.4459,22.828,22.814,111.2702]
[1674242313633,122.4459,22.828,22.809,10.0]
[1674242313842,10.0,22.826,22.811,10.0]
[1674242314038,49.87,22.825,22.811,10.0]
[1674242314249,10.0,22.824,22.811,10.0]
[1674242314458,32.87,22.825,22.811,10.0]
[1674242314869,122.4459,22.828,22.811,10.0]
[1674242315297,10.0,22.826,22.811,10.0]
[1674242316673,32.87,22.825,22.811,10.0]
[1674242316994,42.86,22.826,22.811,10.0]
[1674242319183,42.86,22.826,22.812,17.0]
[1674242319510,42.86,22.826,22.809,10.0]
[1674242319737,42.86,22.826,22.811,10.0]
[1674242320567,42.86,22.826,22.812,17.0]
[1674242320783,42.86,22.826,22.809,10.0]
[1674242321100,17.0,22.825,22.803,122.01]
[1674242321418,10.0,22.823,22.803,122.01]
[1674242321634,49.87,22.822,22.803,122.01]
[1674242321820,10.0,22.821,22.803,122.01]
[1674242322247,32.87,22.82,22.803,122.01]
[1674242322463,10.0,22.819,22.804,10.0]
[1674242322672,32.88,22.818,22.804,10.0]
[1674242322881,32.88,22.818,22.803,112.01]
[1674242323087,17.0,22.817,22.803,112.01]
[1674242323306,32.88,22.816,22.803,112.01]
[1674242323530,32.88,22.816,22.804,10.0]
[1674242323721,32.88,22.818,22.804,10.0]
[1674242324258,10.0,22.817,22.804,10.0]
[1674242324579,10.0,22.817,22.803,112.01]
[1674242325095,32.88,22.816,22.804,10.0]
[1674242325416,10.0,22.815,22.804,10.0]
[1674242325941,10.0,22.815,22.803,112.01]
[1674242326362,10.0,22.815,22.804,10.0]
[1674242326976,10.0,22.815,22.803,112.01]
[1674242327405,10.0,22.815,22.8,10.0]
[1674242327608,32.88,22.814,22.8,10.0]
[1674242327813,32.88,22.814,22.794,10.0]
[1674242327814,10.0,22.813,22.794,10.0]
[1674242328023,32.88,22.812,22.796,20.0]
[1674242328239,10.0,22.811,22.797,10.0]
[1674242328778,10.0,22.811,22.798,20.0]
[1674242329182,32.88,22.814,22.798,20.0]
[1674242329387,10.0,22.817,22.8,10.0]
[1674242329612,10.0,22.817,22.801,17.96]
[1674242330033,10.0,22.817,22.802,10.0]
[1674242330227,10.0,22.817,22.803,17.0]
[1674242330441,10.0,22.817,22.804,10.0]